[Event "30th NATO Chess-ch 2019"]
[Site "Berlin"]
[Date "2019.09.17"]
[Round "2.6"]
[White "Oltean, Gusztav"]
[Black "Wantiez, Fabrice"]
[Result "1-0"]
[ECO "A48"]
[WhiteElo "2053"]
[BlackElo "2225"]
[Annotator "NA"]
[PlyCount "81"]
[EventDate "2019.09.16"]
[EventType "swiss"]
[EventCountry "GER"]
[SourceTitle "playchess.com"]
[Source "ChessBase"]
[SourceQuality "1"]
[TimeControl "40/7200:1800"]

1. d4 {[%emt 1:59:55]} Nf6 {[%emt 1:59:19]} 2. Nf3 {[%emt 1:59:19]} g6 {[%emt 1:59:13]} 3. Nbd2 {[%emt 1:59:13]} Bg7 {[%emt 1:58:18]} 4. e3 {[%emt 1:58:43]} O-O {[%emt 1:55:32]} 5. b3 {[%emt 1:58:20]} d6 {[%emt 1:52:51]} 6. Bb2 {[%emt 1:52:51]} e5 {[%emt 1:54:09] A48: 1 d4 Nf6 2 Nf3 g6: Torre, London and Colle Systems} (6... Nbd7 7. Be2 c5 8. O-O b6 9. c4 e6 10. dxc5 bxc5 11. Qc2 Bb7 12. Rfd1 h6 13. Bd3 Re8 14. Rab1 Qc7 15. Ne4 Rad8 16. h3 {0-1 (122) Camacho Collados,M (2451)-Spraggett,K (2561) Lisbon 2014}) 7. dxe5 {[%emt 1:51:31]} Ng4 {[%emt 1:51:31]} 8. h3 $146 {[%emt 1:46:42]} ({Predecessor:} 8. Nc4 d5 9. h3 dxc4 10. Qxd8 Rxd8 11. hxg4 cxb3 12. axb3 Bxg4 13. Ra4 Bf5 14. e4 {½-½ (35) Bukal,V (2420)-Smolovic,M (2298) Belgrade 2016}) 8... Nxe5 {[%emt 1:43:33]} 9. Nxe5 {[%emt 1:43:28]} dxe5 {[%emt 1:43:13]} 10. g3 {[%emt 1:43:13]} Nc6 {[%emt 1:29:35]} 11. Bg2 {[%emt 1:28:22]} Bf5 {[%emt 1:28:22]} 12. O-O {[%emt 1:29:09]} Qd7 {[%emt 1:18:20]} 13. Kh2 {[%emt 1:22:18]} Rfd8 {[%emt 1:14:26]} 14. Ne4 {[%emt 1:21:57]} Bxe4 {[%emt 1:12:22]} 15. Bxe4 {[%emt 1:12:22]} f5 {[%emt 1:19:35]} 16. Qxd7 {[%emt 1:08:26]} Rxd7 {[%emt 1:08:26]} 17. Bxc6 {[%emt 1:08:21]} bxc6 {[%emt 1:08:21]} 18. Rfd1 {[%emt 1:08:07]} Rad8 {[%emt 1:11:59]} 19. Rxd7 {[%emt 1:08:00]} Rxd7 {[%emt 1:11:56]} 20. Kg2 {[%emt 1:07:52]} Rd2 {[%emt 0:57:24]} 21. Rc1 {[%emt 0:57:24]} e4 {[%emt 1:06:31]} 22. Bxg7 {[%emt 1:06:01]} Kxg7 {[%emt 1:06:01]} 23. Kf1 {[%emt 1:05:52]} Kf6 {[%emt 1:05:52]} 24. Ke1 {[%emt 1:05:45]} Rd5 {[%emt 0:56:30]} 25. c4 {[%emt 1:04:26]} Rd6 {[%emt 0:55:50]} 26. Rd1 {[%emt 1:03:46]} Ke5 {[%emt 1:03:46]} 27. Rxd6 {[%emt 1:00:03]} cxd6 {[%emt 0:55:08]} 28. Kd2 {[%emt 0:55:08]} a5 {[%emt 0:58:42]} 29. Kc3 {[%emt 0:35:17]} c5 $11 {[%emt 0:57:20]} 30. Kb2 {[%emt 0:34:44]} d5 {[%emt 0:34:40]} 31. cxd5 {[%emt 0:54:34]} Kxd5 {[%emt 0:34:37]} 32. Kc3 {[%emt 0:54:30]} g5 {[%emt 0:30:00]} 33. h4 {[%emt 0:30:00]} h6 {[%emt 0:29:40]} 34. h5 {[%emt 0:50:04]} Kc6 {[%emt 0:50:04]} 35. Kc4 {[%emt 0:20:58]} Kb6 {[%emt 0:20:54]} 36. g4 {[%emt 0:34:41]} fxg4 {[%emt 0:20:49]} 37. Kd5 {[%emt 0:20:49]} Kb5 {[%emt 0:34:35]} 38. Kxe4 {[%emt 0:20:43]} c4 {[%emt 0:34:30]} 39. bxc4+ {[%emt 0:33:38]} Kxc4 {[%emt 0:19:52]} 40. Kf5 {[%emt 0:19:52]} a4 {[%emt 0:17:18]} 41. e4 {[%emt 0:17:18]} 1-0

[Event "30th NATO Chess-ch 2019"]
[Site "Berlin"]
[Date "2019.09.17"]
[Round "2.7"]
[White "Papasimakopoulos, Alexandros"]
[Black "Oblak, Nicholas"]
[Result "1-0"]
[ECO "D30"]
[WhiteElo "2218"]
[BlackElo "2048"]
[Annotator "NA"]
[PlyCount "69"]
[EventDate "2019.09.16"]
[EventType "swiss"]
[EventCountry "GER"]
[SourceTitle "playchess.com"]
[Source "ChessBase"]
[SourceQuality "1"]
[TimeControl "40/7200:1800"]

1. d4 {[%emt 2:00:00]} d5 {[%emt 1:59:08]} 2. c4 {[%emt 1:59:19]} e6 {[%emt 1:59:13]} 3. Nc3 {[%emt 1:59:13]} c5 {[%emt 1:59:01]} 4. cxd5 {[%emt 1:58:42]} exd5 {[%emt 1:58:42]} 5. Nf3 {[%emt 1:58:58]} Nf6 {[%emt 1:58:33]} 6. g3 {[%emt 1:58:02]} Nc6 {[%emt 1:57:59]} 7. Bg2 {[%emt 1:58:10]} Be7 {[%emt 1:57:53]} 8. O-O {[%emt 1:57:53]} O-O {[%emt 1:57:37]} 9. dxc5 {[%emt 1:57:37]} Bxc5 {[%emt 1:57:21]} 10. a3 {[%emt 1:57:33]} h6 {[%emt 1:55:28]} 11. b4 {[%emt 1:55:28]} Bb6 {[%emt 1:51:35]} 12. Bb2 {[%emt 1:51:35]} Be6 {[%emt 1:56:28]} 13. Na4 {[%emt 1:53:53]} Ne4 {[%emt 1:42:04]} 14. Nxb6 {[%emt 1:42:04]} Qxb6 {[%emt 1:50:35]} 15. Nd4 {[%emt 1:50:13]} Rad8 {[%emt 1:50:13]} 16. Rc1 {[%emt 1:32:31]} a5 $16 {[%emt 1:23:22]} 17. b5 {[%emt 1:29:12]} Nxd4 {[%emt 1:22:46]} 18. Qxd4 {[%emt 1:29:03]} Qxd4 {[%emt 1:29:03]} 19. Bxd4 {[%emt 1:28:56]} Rc8 {[%emt 1:22:11]} 20. a4 {[%emt 1:28:27]} Nd2 {[%emt 1:28:27]} 21. Rfd1 {[%emt 1:19:25]} Rxc1 {[%emt 1:14:15]} 22. Rxc1 {[%emt 1:14:07]} Nb3 {[%emt 1:11:20]} 23. Rd1 {[%emt 1:11:20]} Rc8 {[%emt 1:11:18]} 24. Be3 {[%emt 1:11:18]} Rc4 {[%emt 1:13:02]} 25. Bxd5 {[%emt 1:10:40]} Bxd5 {[%emt 1:12:40]} 26. Rxd5 {[%emt 1:12:34]} Rxa4 {[%emt 1:09:02]} 27. Rd8+ {[%emt 1:09:02]} Kh7 {[%emt 1:12:29]} 28. Rd7 {[%emt 1:12:11]} Kg6 {[%emt 1:05:42]} 29. Rxb7 {[%emt 1:11:49]} Nd4 {[%emt 1:02:42]} 30. b6 {[%emt 1:02:42]} Nxe2+ {[%emt 0:59:06]} 31. Kf1 {[%emt 1:07:22]} Nc3 {[%emt 1:07:22]} 32. Rd7 {[%emt 1:06:52]} Rb4 {[%emt 0:50:19]} 33. b7 {[%emt 1:06:46]} Ne4 {[%emt 0:49:52]} 34. Ba7 {[%emt 1:06:28]} Nf6 {[%emt 0:49:45]} 35. Rc7 {[%emt 1:06:16]} 1-0

[Event "30th NATO Chess-ch 2019"]
[Site "Berlin"]
[Date "2019.09.17"]
[Round "2.8"]
[White "Marquardt, Christian"]
[Black "Pietruszewski, Marcin"]
[Result "1/2-1/2"]
[ECO "A32"]
[WhiteElo "2049"]
[BlackElo "2215"]
[Annotator "NA"]
[PlyCount "46"]
[EventDate "2019.09.16"]
[EventType "swiss"]
[EventCountry "GER"]
[SourceTitle "playchess.com"]
[Source "ChessBase"]
[SourceQuality "1"]
[TimeControl "40/7200:1800"]

1. d4 {[%emt 2:00:00]} Nf6 {[%emt 1:58:19]} 2. c4 {[%emt 1:58:19]} e6 {[%emt 1:59:08]} 3. Nf3 {[%emt 1:58:38]} c5 {[%emt 1:58:38]} 4. g3 {[%emt 1:53:52]} cxd4 {[%emt 1:38:04]} 5. Nxd4 {[%emt 1:56:14]} Bb4+ {[%emt 1:32:29]} 6. Bd2 {[%emt 1:48:05]} Be7 {[%emt 1:29:33]} 7. Bg2 {[%emt 1:29:33] A32: Symmetrical English: 2 Nf3 Nf6 3 d4 cxd4 4 Nxd4 e6} O-O {[%emt 1:46:23]} (7... Nc6 8. Nf3 O-O 9. O-O b6 10. Nc3 Bb7 11. Bf4 Rc8 12. Rc1 d6 13. Nb5 Ne8 14. Nfd4 a6 15. Bxc6 Bxc6 {1-0 (39) Paravyan,D (2634)-Abdusattorov,N (2546) St Petersburg 2018}) 8. O-O {[%emt 1:25:41]} a6 {[%emt 1:22:47]} 9. Nc3 {[%emt 1:38:35]} d6 {[%emt 1:20:45]} 10. e4 $146 {[%emt 1:35:18]} ({Predecessor:} 10. h3 Qc7 11. Rc1 Nbd7 12. Be3 Re8 13. Qd2 {1-0 (40) Diermair,A (2312)-Scheffknecht,P (2118) Vienna 2010}) 10... Bd7 {[%emt 1:04:24]} 11. Qe2 {[%emt 1:04:24]} Nc6 {[%emt 1:30:34]} 12. Be3 {[%emt 1:03:53]} Rc8 {[%emt 1:03:24]} 13. Nxc6 {[%emt 1:03:24]} Bxc6 {[%emt 1:01:20]} 14. Rac1 {[%emt 1:01:20]} Qa5 {[%emt 0:53:35]} 15. Bd2 {[%emt 1:13:31]} Qb6 {[%emt 0:41:53]} 16. Be3 {[%emt 0:41:53]} Qa5 {[%emt 0:38:50]} 17. Bd2 {[%emt 0:38:50]} Qb6 {[%emt 0:38:33]} 18. Be3 {[%emt 1:12:05]} Qb4 {[%emt 0:34:33]} 19. Rc2 {[%emt 0:34:33]} Rc7 $14 {[%emt 0:28:48]} 20. Bd2 {[%emt 0:28:48]} Qb6 {[%emt 1:04:39]} 21. Be3 {[%emt 0:25:12]} Qb4 {[%emt 1:04:14]} 22. Bd2 {[%emt 1:03:55]} Qb6 {[%emt 0:24:07]} 23. Be3 {[%emt 0:24:07]} Qb4 {[%emt 1:03:44]} 1/2-1/2

[Event "30th NATO Chess-ch 2019"]
[Site "Berlin"]
[Date "2019.09.17"]
[Round "2.9"]
[White "Fichtner, Ewald"]
[Black "Valeinis, Janis"]
[Result "1-0"]
[ECO "D00"]
[WhiteElo "2046"]
[BlackElo "2206"]
[Annotator "NA"]
[PlyCount "103"]
[EventDate "2019.09.16"]
[EventType "swiss"]
[EventCountry "GER"]
[SourceTitle "playchess.com"]
[Source "ChessBase"]
[SourceQuality "1"]
[TimeControl "40/7200:1800"]

1. d4 {[%emt 2:00:00]} d5 {[%emt 1:59:40]} 2. Bf4 {[%emt 1:59:40]} Nf6 {[%emt 1:59:28]} 3. e3 {[%emt 1:59:28]} c5 {[%emt 1:59:19]} 4. c3 {[%emt 1:59:36]} Nc6 {[%emt 1:59:08]} 5. Nd2 {[%emt 1:59:29]} Qb6 {[%emt 1:59:29]} 6. Qb3 {[%emt 1:59:21] D00: 1 d4 d5: Unusual lines} c4 {[%emt 1:55:10]} (6... Nh5 7. Qxb6 axb6 8. Bc7 cxd4 9. exd4 e5 10. Bxe5 Nxe5 11. dxe5 Bc5 12. g3 O-O {1-0 (76) Aronian,L (2765)-Caruana,F (2832) London 2018}) 7. Qc2 {[%emt 1:55:10]} Bg4 {[%emt 1:40:34]} 8. b3 {[%emt 1:57:01]} cxb3 {[%emt 1:57:01]} 9. axb3 {[%emt 1:38:42]} e6 {[%emt 1:38:30]} 10. Ngf3 {[%emt 1:54:25]} Rc8 {[%emt 1:54:25]} 11. Qb2 {[%emt 1:51:37]} Be7 {[%emt 1:51:37]} 12. h3 $146 {[%emt 1:50:55]} ({Predecessor:} 12. Bd3 Bh5 {1-0 (48) Maksimovic,B (2369)-Ioannidis,E (2049) Plovdiv 2014}) 12... Bxf3 {[%emt 1:13:25]} 13. gxf3 {[%emt 1:49:21]} Nh5 {[%emt 1:07:00]} 14. Bh2 {[%emt 1:48:37]} g6 {[%emt 1:48:37]} 15. Be2 {[%emt 1:03:29]} a6 {[%emt 1:44:41]} 16. O-O {[%emt 1:02:23]} O-O {[%emt 1:01:17]} 17. Rfb1 {[%emt 1:01:17]} Qd8 {[%emt 0:50:51]} 18. c4 {[%emt 0:50:51]} Bd6 {[%emt 1:29:55]} 19. f4 {[%emt 0:41:53]} Qh4 {[%emt 0:40:58]} 20. Kg2 {[%emt 0:40:58]} Nf6 {[%emt 0:36:06]} 21. Bg3 {[%emt 0:36:06]} Qh6 {[%emt 0:35:58]} 22. c5 {[%emt 1:26:05]} Bb8 {[%emt 0:33:50]} 23. b4 {[%emt 0:33:50]} Ne7 {[%emt 1:25:56]} 24. b5 {[%emt 0:30:34]} axb5 {[%emt 1:24:41]} 25. Qxb5 {[%emt 0:29:21]} Nf5 {[%emt 0:27:46]} 26. Bg4 {[%emt 1:12:08]} Rc7 $18 {[%emt 0:21:12]} (26... Nxg3 $14 27. fxg3 g5) 27. Qe2 {[%emt 0:21:12]} Nxg3 {[%emt 0:20:13]} 28. fxg3 {[%emt 1:05:14]} Nd7 {[%emt 1:05:14]} 29. Rb2 {[%emt 1:04:32]} f5 {[%emt 0:14:25]} 30. Bf3 {[%emt 1:04:21]} g5 {[%emt 0:13:49]} 31. Rab1 {[%emt 1:03:11]} b6 {[%emt 1:03:11]} 32. cxb6 {[%emt 1:02:24]} Rcc8 {[%emt 0:11:45]} 33. Qb5 {[%emt 0:11:45]} Nf6 {[%emt 0:11:16]} 34. Be2 {[%emt 0:11:16]} Kh8 {[%emt 0:10:45]} 35. Rh1 {[%emt 0:44:25]} gxf4 {[%emt 0:09:17]} 36. exf4 {[%emt 0:39:38]} Rc3 {[%emt 0:05:49]} 37. Rb3 {[%emt 0:38:32]} Rc2 {[%emt 0:04:29]} 38. Qd3 {[%emt 0:36:19]} Rc6 {[%emt 0:36:19]} 39. Qe3 {[%emt 0:04:04]} Rg8 {[%emt 0:30:46]} 40. Kf2 {[%emt 0:30:10]} Rc2 {[%emt 0:01:09]} 41. Bf3 {[%emt 0:01:09]} Bd6 {[%emt 0:18:49]} 42. h4 {[%emt 0:56:10]} e5 {[%emt 0:04:49]} 43. fxe5 {[%emt 0:54:35]} Rxd2+ {[%emt 0:04:22]} 44. Ke1 {[%emt 0:04:22]} Qxe3+ {[%emt 0:03:59]} 45. Rxe3 {[%emt 0:54:08]} Bb4 {[%emt 0:03:07]} 46. exf6 {[%emt 0:52:49]} Ra8 {[%emt 0:02:21]} 47. Re2 {[%emt 0:51:48]} Ra1+ {[%emt 0:02:13]} 48. Kf2 {[%emt 0:51:40]} Rxe2+ {[%emt 0:01:38]} 49. Kxe2 {[%emt 0:01:38]} Ra6 {[%emt 0:01:14]} 50. b7 {[%emt 0:01:14]} Ra2+ {[%emt 0:00:51]} 51. Ke3 {[%emt 0:00:51]} Bd6 {[%emt 0:00:44]} 52. Rc1 {[%emt 0:00:37]} 1-0

[Event "30th NATO Chess-ch 2019"]
[Site "Berlin"]
[Date "2019.09.17"]
[Round "2.10"]
[White "Andersen, Hans-Christoph"]
[Black "Kende, Gyorgy"]
[Result "0-1"]
[ECO "A59"]
[WhiteElo "2201"]
[BlackElo "2036"]
[Annotator "NA"]
[PlyCount "56"]
[EventDate "2019.09.16"]
[EventType "swiss"]
[EventCountry "GER"]
[SourceTitle "playchess.com"]
[Source "ChessBase"]
[SourceQuality "1"]
[TimeControl "40/7200:1800"]

1. d4 {[%emt 1:59:53]} Nf6 {[%emt 1:59:53]} 2. c4 {[%emt 1:59:16]} c5 {[%emt 1:59:31]} 3. d5 {[%emt 1:58:49]} b5 {[%emt 1:59:22]} 4. cxb5 {[%emt 1:57:51]} a6 {[%emt 1:56:13]} 5. bxa6 {[%emt 1:57:30]} Bxa6 {[%emt 1:54:59]} 6. Nc3 {[%emt 1:57:01]} d6 {[%emt 1:54:35]} 7. e4 {[%emt 1:56:23]} Bxf1 {[%emt 1:54:21]} 8. Kxf1 {[%emt 1:56:16]} g6 {[%emt 1:54:09]} 9. g3 {[%emt 1:55:56]} Bg7 {[%emt 1:53:39]} 10. Kg2 {[%emt 1:53:39]} O-O {[%emt 1:52:52]} 11. Nf3 {[%emt 1:55:01]} Nbd7 {[%emt 1:55:01]} 12. a4 {[%emt 1:52:47]} Qb6 {[%emt 1:52:47]} 13. Qe2 {[%emt 1:47:53]} Rfe8 {[%emt 1:35:08]} 14. Bf4 {[%emt 0:38:36]} e6 {[%emt 0:38:36]} 15. dxe6 {[%emt 0:28:32]} Rxe6 {[%emt 1:20:37]} 16. Ng5 {[%emt 0:22:36]} Re7 $16 {[%emt 0:22:36]} 17. Qc2 {[%emt 0:11:29]} h6 {[%emt 1:13:11]} 18. Nf3 {[%emt 0:11:20]} g5 {[%emt 1:12:44]} 19. Be3 {[%emt 0:09:00]} Qc6 {[%emt 1:04:18]} 20. Nd2 {[%emt 0:08:58]} d5 {[%emt 0:55:41]} 21. exd5 {[%emt 0:55:41]} Nxd5 {[%emt 0:08:39]} 22. Nxd5 {[%emt 0:55:17]} Qxd5+ {[%emt 0:55:11]} 23. Kg1 {[%emt 0:55:11]} Rae8 {[%emt 0:52:10]} 24. Nc4 {[%emt 0:03:37]} Bd4 25. h3 {[%emt 0:02:09]} Ne5 {[%emt 0:20:30]} 26. Nxe5 {[%emt 0:20:30]} Rxe5 {[%emt 0:20:04]} 27. Bxd4 {[%emt 0:01:42]} Re1+ {[%emt 0:01:42]} 28. Kh2 {[%emt 0:01:40]} Qxh1# {[%emt 0:16:28] --- Rf1#} 0-1

[Event "30th NATO Chess-ch 2019"]
[Site "Berlin"]
[Date "2019.09.17"]
[Round "2.11"]
[White "Aagaard, Gert"]
[Black "Werksma, Arie"]
[Result "1/2-1/2"]
[ECO "D02"]
[WhiteElo "2029"]
[BlackElo "2197"]
[Annotator "NA"]
[PlyCount "77"]
[EventDate "2019.09.16"]
[EventType "swiss"]
[EventCountry "GER"]
[SourceTitle "playchess.com"]
[Source "ChessBase"]
[SourceQuality "1"]
[TimeControl "40/7200:1800"]

1. d4 {[%emt 1:59:56]} Nf6 {[%emt 1:59:56]} 2. Nf3 {[%emt 1:59:53]} e6 {[%emt 1:59:48]} 3. Bf4 {[%emt 1:59:50]} b6 {[%emt 1:58:21]} 4. e3 {[%emt 1:58:21]} Bb7 {[%emt 1:57:38]} 5. Bd3 {[%emt 1:56:08]} Be7 {[%emt 1:56:04]} 6. h3 {[%emt 1:55:57]} O-O {[%emt 1:55:57]} 7. O-O {[%emt 1:55:36]} c5 {[%emt 1:55:40]} 8. Nbd2 {[%emt 1:54:12]} d5 {[%emt 1:50:40]} 9. Ne5 {[%emt 1:48:47]} Nc6 {[%emt 1:45:15]} 10. c3 {[%emt 1:47:26]} Nxe5 {[%emt 1:39:48]} 11. Bxe5 {[%emt 1:47:09]} Bd6 {[%emt 1:47:09]} 12. f4 {[%emt 1:38:32]} Ne4 {[%emt 1:22:42]} 13. Qc2 {[%emt 1:27:24]} f5 {[%emt 1:14:41]} 14. Nf3 {[%emt 1:14:41]} Rc8 {[%emt 0:59:59]} 15. Kh2 {[%emt 0:59:59]} Rc7 {[%emt 0:57:16]} 16. Rg1 {[%emt 1:02:38]} Bc6 {[%emt 1:02:38]} 17. Qe2 $11 {[%emt 0:39:31]} Be8 {[%emt 0:53:08]} 18. Bxe4 {[%emt 0:34:52]} fxe4 {[%emt 0:32:03]} 19. Bxd6 {[%emt 0:32:03]} Qxd6 {[%emt 0:49:00]} 20. Ne5 {[%emt 0:48:40]} cxd4 {[%emt 0:24:03]} 21. cxd4 {[%emt 0:47:06]} Bd7 {[%emt 0:23:37]} 22. Qd2 {[%emt 0:23:37]} Rfc8 {[%emt 0:23:22]} 23. Rac1 {[%emt 0:46:07]} Be8 {[%emt 0:23:15]} 24. g4 {[%emt 0:23:15]} Ba4 {[%emt 0:43:27]} 25. Rxc7 {[%emt 0:19:20]} Qxc7 {[%emt 0:37:36]} 26. Kg3 {[%emt 0:28:36]} a5 {[%emt 0:28:36]} 27. Rg2 {[%emt 0:18:54]} Be8 {[%emt 0:24:27]} 28. h4 {[%emt 0:13:29]} Qc1 {[%emt 0:13:16]} 29. Qxc1 {[%emt 0:15:12]} Rxc1 {[%emt 0:15:12]} 30. f5 {[%emt 0:13:11]} Kf8 {[%emt 0:10:47]} 31. Rf2 {[%emt 0:09:47]} Ke7 {[%emt 0:09:47]} 32. Kf4 {[%emt 0:12:46]} b5 {[%emt 0:08:56]} 33. a3 {[%emt 0:10:41]} Kd6 {[%emt 0:07:24]} 34. Kg3 {[%emt 0:06:50]} Ke7 {[%emt 0:04:18]} 35. fxe6 {[%emt 0:03:51]} b4 {[%emt 0:03:43]} 36. axb4 axb4 {[%emt 0:03:29]} 37. h5 {[%emt 0:02:13]} b3 {[%emt 0:02:13]} 38. Kf4 {[%emt 0:03:11]} Kxe6 {[%emt 0:02:55]} 39. Kg3 {[%emt 0:00:41]} 1/2-1/2

[Event "30th NATO Chess-ch 2019"]
[Site "Berlin"]
[Date "2019.09.17"]
[Round "2.12"]
[White "Wang, Eigen"]
[Black "Michalski, Daniel"]
[Result "1-0"]
[ECO "C41"]
[WhiteElo "2193"]
[BlackElo "2024"]
[Annotator "NA"]
[PlyCount "69"]
[EventDate "2019.09.16"]
[EventType "swiss"]
[EventCountry "GER"]
[SourceTitle "playchess.com"]
[Source "ChessBase"]
[SourceQuality "1"]
[TimeControl "40/7200:1800"]

1. e4 {[%emt 2:00:00]} d6 {[%emt 1:59:53]} 2. d4 {[%emt 1:59:29]} Nf6 {[%emt 1:59:29]} 3. Nc3 {[%emt 1:59:24]} e5 {[%emt 1:58:29]} 4. Nf3 {[%emt 1:59:14]} Nbd7 {[%emt 1:58:35]} 5. Bc4 {[%emt 1:56:10]} Be7 {[%emt 1:58:23]} 6. O-O {[%emt 1:55:29]} O-O {[%emt 1:58:17]} 7. Re1 {[%emt 1:58:17]} a6 {[%emt 1:57:54]} 8. a4 {[%emt 1:52:42]} b6 {[%emt 1:57:29]} 9. b3 {[%emt 1:48:58]} c6 {[%emt 1:48:58]} 10. Bb2 {[%emt 1:44:48]} Bb7 {[%emt 1:42:03]} 11. Bd3 {[%emt 1:31:25]} Qc7 {[%emt 1:37:41]} 12. Ne2 $11 {[%emt 1:29:30]} Rfe8 {[%emt 1:29:30]} 13. Ng3 {[%emt 1:27:02]} Bf8 {[%emt 1:27:02]} 14. Qd2 {[%emt 1:12:45]} g6 {[%emt 1:12:05]} 15. Rad1 {[%emt 1:02:17]} b5 {[%emt 1:05:09]} 16. Ra1 {[%emt 0:55:51]} Bg7 {[%emt 0:58:16]} 17. c4 {[%emt 0:46:20]} bxc4 {[%emt 0:53:17]} 18. Bxc4 {[%emt 0:44:56]} exd4 {[%emt 0:45:49]} 19. Nxd4 {[%emt 0:41:29]} d5 {[%emt 0:41:29]} 20. Bd3 {[%emt 0:29:31]} c5 {[%emt 0:36:14]} 21. Ndf5 {[%emt 0:36:14]} d4 {[%emt 0:23:20]} 22. Nxg7 {[%emt 0:25:33]} Kxg7 {[%emt 0:25:33]} 23. Bc1 {[%emt 0:19:02]} Kh8 {[%emt 0:19:02]} 24. Qg5 {[%emt 0:12:06]} Nd5 {[%emt 0:08:41]} 25. Bc4 {[%emt 0:08:41]} f6 {[%emt 0:07:20]} 26. Qh4 {[%emt 0:09:39]} Re7 {[%emt 0:09:39]} 27. Bd2 {[%emt 0:04:31]} Nb4 {[%emt 0:04:03]} 28. Rac1 {[%emt 0:04:03]} Qb6 {[%emt 0:03:37]} 29. a5 {[%emt 0:02:54]} Qxa5 {[%emt 0:03:05]} 30. e5 {[%emt 0:02:18]} Rxe5 {[%emt 0:02:18]} 31. Rxe5 {[%emt 0:02:48]} fxe5 {[%emt 0:02:44]} 32. Be6 {[%emt 0:02:44]} Qd8 {[%emt 0:01:41]} 33. Bg5 {[%emt 0:01:25]} Qe8 {[%emt 0:01:36]} 34. Bf6+ {[%emt 0:01:15]} Nxf6 {[%emt 0:01:22]} 35. Qxf6# {[%emt 0:01:09] --- Bc8+ --- Qe7 Bxc8 --- Qd8 --- e4 Qc6} 1-0

[Event "30th NATO Chess-ch 2019"]
[Site "Berlin"]
[Date "2019.09.17"]
[Round "2.13"]
[White "Cheung, Jan"]
[Black "Everett, Elijah"]
[Result "1/2-1/2"]
[ECO "A45"]
[WhiteElo "2015"]
[BlackElo "2187"]
[Annotator "NA"]
[PlyCount "102"]
[EventDate "2019.09.16"]
[EventType "swiss"]
[EventCountry "GER"]
[SourceTitle "playchess.com"]
[Source "ChessBase"]
[SourceQuality "1"]
[TimeControl "40/7200:1800"]

1. d4 {[%emt 2:00:00]} Nf6 {[%emt 1:59:52]} 2. Bg5 {[%emt 1:59:38]} Ne4 {[%emt 1:59:43]} 3. Bf4 {[%emt 1:59:29]} c5 {[%emt 1:59:31]} 4. f3 {[%emt 1:58:04]} Qa5+ {[%emt 1:59:10]} 5. c3 {[%emt 1:55:17]} Nf6 {[%emt 1:58:56]} 6. d5 {[%emt 1:55:01]} Qb6 {[%emt 1:58:00]} 7. Bc1 {[%emt 1:54:36]} e6 {[%emt 1:54:36]} 8. e4 {[%emt 1:53:54]} exd5 {[%emt 1:53:54]} 9. exd5 {[%emt 1:53:46]} Bd6 {[%emt 1:53:46]} 10. c4 {[%emt 1:52:36]} O-O {[%emt 1:52:36]} 11. Bd3 {[%emt 1:55:05]} Be5 {[%emt 1:49:14]} 12. Qc2 {[%emt 1:48:02]} Re8 $15 {[%emt 1:45:09]} 13. Ne2 {[%emt 1:45:04]} Na6 {[%emt 1:43:09]} 14. a3 {[%emt 1:42:30]} Qd6 {[%emt 1:42:30]} 15. Kf2 {[%emt 1:25:25]} Bxh2 {[%emt 1:25:25]} 16. g3 {[%emt 1:13:09]} Rxe2+ {[%emt 1:13:09]} 17. Qxe2 {[%emt 1:10:16]} Bxg3+ {[%emt 1:02:51]} 18. Kg2 {[%emt 1:02:51]} Nc7 19. Bg5 {[%emt 1:01:22]} Be5 {[%emt 1:02:03]} 20. Nc3 {[%emt 0:57:20]} h6 {[%emt 0:57:20]} 21. Bd2 {[%emt 0:49:23]} b5 {[%emt 0:47:12]} 22. Rae1 {[%emt 0:47:12]} Bxc3 {[%emt 0:33:09]} 23. Bxc3 {[%emt 0:30:32]} bxc4 {[%emt 0:40:29]} 24. Bxc4 {[%emt 0:40:29]} Ncxd5 {[%emt 0:19:34]} 25. Bxd5 {[%emt 0:35:02]} Nxd5 {[%emt 0:17:53]} 26. Qe8+ {[%emt 0:34:36]} Kh7 {[%emt 0:14:17]} 27. Qxf7 {[%emt 0:06:48]} Qg6+ {[%emt 0:06:48]} 28. Qxg6+ {[%emt 0:21:17]} Kxg6 {[%emt 0:06:44]} 29. Re8 {[%emt 0:21:09]} Kf7 {[%emt 0:20:34]} 30. Rhe1 {[%emt 0:04:49]} Nf4+ {[%emt 0:19:32]} 31. Kg3 {[%emt 0:19:32]} Ne6 {[%emt 0:04:32]} 32. Rh8 {[%emt 0:04:09]} Bb7 {[%emt 0:10:34]} 33. Rxa8 {[%emt 0:04:04]} Bxa8 {[%emt 0:04:04]} 34. b4 {[%emt 0:03:53]} c4 {[%emt 0:03:53]} 35. f4 {[%emt 0:02:46]} d5 {[%emt 0:02:46]} 36. Rd1 {[%emt 0:01:41]} a6 {[%emt 0:01:41]} 37. a4 {[%emt 0:01:29]} g5 {[%emt 0:01:29]} 38. fxg5 {[%emt 0:00:58]} Nxg5 {[%emt 0:00:58]} 39. Kf4 {[%emt 0:00:46]} Ne4 {[%emt 0:00:46]} 40. Bd4 {[%emt 0:00:13]} Bc6 {[%emt 0:02:18]} 41. Ke5 {[%emt 0:28:37]} Kg6 {[%emt 0:28:37]} 42. b5 {[%emt 0:25:23]} axb5 {[%emt 0:23:02]} 43. axb5 {[%emt 0:25:19]} Bxb5 {[%emt 0:22:55]} 44. Kxd5 {[%emt 0:22:55]} Ng5 {[%emt 0:25:06]} 45. Rb1 {[%emt 0:24:17]} Bd7 {[%emt 0:24:17]} 46. Kxc4 {[%emt 0:23:53]} Kf5 {[%emt 0:23:53]} 47. Rh1 {[%emt 0:21:51]} Kg6 {[%emt 0:19:28]} 48. Be3 {[%emt 0:20:32]} Bc6 {[%emt 0:20:32]} 49. Rg1 {[%emt 0:18:37]} Kf5 {[%emt 0:18:37]} 50. Bxg5 {[%emt 0:17:58]} hxg5 {[%emt 0:18:19]} 51. Rxg5+ {[%emt 0:17:55]} Kxg5 {[%emt 0:17:43]} 1/2-1/2